bitfinex/quotes_SOLUSD_20250527
["timestamp","ask_amount","ask_price","bid_price","bid_amount"]
[1748371003649,44.64964886,178.34,178.26,89.0]
[1748371003650,21.12007991,178.29,178.26,89.0]
[1748371003958,21.12007991,178.29,178.24,21.12007991]
[1748371004133,21.12007991,178.29,178.23,140.3328]
[1748371004134,21.12007991,178.29,178.25,21.12007991]
[1748371006234,22.52221114,178.3,178.25,21.12007991]
[1748371007529,1.40213123,178.3,178.26,21.12007991]
[1748371007956,1.40213123,178.3,178.23,140.3328]
[1748371008142,1.96298372,178.3,178.26,21.12007991]
[1748371009865,0.56085249,178.3,178.27,21.12007991]
[1748371010162,0.56085249,178.3,178.29,21.12007991]
[1748371010163,26.56085249,178.3,178.29,21.12007991]
[1748371010346,26.56085249,178.3,178.28,21.12007991]
[1748371011455,26.56085249,178.3,178.29,21.12007991]
[1748371012181,0.56085249,178.3,178.29,21.12007991]
[1748371012764,0.56082371,178.31,178.29,21.12007991]
[1748371013154,0.56082371,178.31,178.3,21.12007991]
[1748371014249,26.0,178.33,178.3,21.12007991]
[1748371014450,0.5607267,178.34,178.32,21.12007991]
[1748371014867,0.5607267,178.34,178.31,21.12007991]
[1748371015065,26.0,178.33,178.31,21.12007991]
[1748371015287,26.0,178.33,178.3,21.12007991]
[1748371015765,26.0,178.33,178.27,44.9]
[1748371015952,26.0,178.33,178.3,21.12007991]
[1748371016154,0.56078959,178.32,178.3,21.12007991]
[1748371016354,0.56078959,178.32,178.31,21.12007991]
[1748371017066,0.56063239,178.37,178.31,56.50007991]
[1748371017264,0.56063239,178.37,178.33,21.12007991]
[1748371017455,26.56063239,178.37,178.33,21.12007991]
[1748371017854,26.56063239,178.37,178.31,35.38]
[1748371017855,26.56063239,178.37,178.34,21.12007991]
[1748371018065,26.56063239,178.37,178.33,21.12007991]
[1748371018369,27.96221337,178.37,178.33,21.12007991]
[1748371018555,49.08229328,178.37,178.32,21.12007991]
[1748371018755,21.12007991,178.36,178.32,21.12007991]
[1748371018958,21.12007991,178.36,178.31,35.38]
[1748371019279,21.12007991,178.36,178.32,21.12007991]
[1748371019451,0.56069526,178.35,178.32,21.12007991]
[1748371020675,1.96232338,178.36,178.32,21.12007991]
[1748371021091,0.56066382,178.36,178.33,21.12007991]
[1748371021678,0.56066382,178.36,178.35,21.12007991]
[1748371021899,26.0,178.37,178.35,21.12007991]
[1748371021900,0.5606425,178.37,178.35,21.12007991]
[1748371022054,0.5606425,178.37,178.36,21.12007991]
[1748371022247,0.56058988,178.39,178.36,21.12007991]
[1748371022481,0.56058988,178.39,178.38,21.12007991]
[1748371022681,0.56047528,178.42,178.38,21.12007991]
[1748371022861,0.56047528,178.42,178.39,21.12007991]
[1748371023175,26.0,178.41,178.39,21.12007991]
[1748371023768,0.56047528,178.42,178.39,21.12007991]
[1748371026192,0.56047528,178.42,178.35,124.38]
[1748371026396,0.56047528,178.42,178.37,7.9057]
[1748371026598,23.08156041,178.44,178.39,21.12007991]
[1748371027583,23.08156041,178.44,178.37,7.9057]
[1748371027584,1.9614805,178.44,178.4,21.12007991]
[1748371027760,23.08156041,178.44,178.39,21.12007991]
[1748371030576,23.08156041,178.44,178.37,7.9057]
[1748371030784,23.08156041,178.44,178.39,21.12007991]
[1748371034592,1.9614805,178.44,178.39,21.12007991]
[1748371034774,23.08156041,178.44,178.39,21.12007991]
[1748371034981,23.08156041,178.44,178.37,7.9057]
[1748371035171,23.08156041,178.44,178.39,21.12007991]
[1748371036788,23.08156041,178.44,178.37,7.9057]
[1748371036998,23.08156041,178.44,178.39,21.12007991]
[1748371037690,1.9614805,178.44,178.4,21.12007991]
[1748371039299,23.08156041,178.44,178.39,21.12007991]
[1748371039999,21.12007991,178.43,178.39,21.12007991]
[1748371040204,21.12007991,178.43,178.38,21.12007991]
[1748371040376,1.96166348,178.42,178.38,21.12007991]
[1748371042103,1.96166348,178.42,178.39,21.12007991]
[1748371042614,1.4011882,178.42,178.39,21.12007991]
[1748371042780,1.4011882,178.42,178.4,21.12007991]
[1748371044287,1.4011882,178.42,178.39,21.12007991]
[1748371045231,0.56044387,178.43,178.39,21.12007991]
[1748371045380,0.56044387,178.43,178.41,21.12007991]
[1748371046095,0.56044387,178.43,178.37,43.2457]
[1748371046290,0.56044387,178.43,178.4,21.12007991]
[1748371047299,41.17073731,178.45,178.4,21.12007991]
[1748371047300,1.96144361,178.44,178.4,21.12007991]
[1748371051116,0.56041246,178.44,178.41,21.12007991]
[1748371051313,0.56041246,178.44,178.43,21.12007991]
[1748371051689,0.56041246,178.44,178.42,21.12007991]
[1748371052307,22.52093334,178.47,178.42,21.12007991]
[1748371052308,0.56034965,178.46,178.42,21.12007991]
[1748371052502,0.56034965,178.46,178.43,21.12007991]
[1748371052711,1.96122379,178.46,178.42,21.12007991]
[1748371054038,1.96122379,178.46,178.38,119.62007991]
[1748371054039,39.76972877,178.45,178.4,21.12007991]
[1748371054311,21.12007991,178.43,178.38,110.12007991]
[1748371054534,21.12007991,178.43,178.38,21.12007991]
[1748371054693,21.12007991,178.4,178.35,21.12007991]
[1748371054891,21.12007991,178.4,178.34,9.48]
[1748371054892,21.12007991,178.39,178.34,30.60007991]
[1748371055104,18.64964886,178.42,178.34,9.48]
[1748371055316,18.64964886,178.42,178.32,21.12007991]
[1748371055317,21.12007991,178.37,178.32,21.12007991]
[1748371056091,21.12007991,178.36,178.31,21.12007991]
[1748371056319,0.56069526,178.35,178.31,21.12007991]
[1748371056537,0.56069526,178.35,178.33,21.12007991]
[1748371056891,0.56063239,178.37,178.34,21.12007991]
[1748371057098,0.56063239,178.37,178.35,21.12007991]
[1748371057732,1.96221337,178.37,178.33,21.12007991]
[1748371057921,23.08229328,178.37,178.31,35.32]
[1748371058111,21.12007991,178.36,178.31,21.12007991]
[1748371058315,0.56069526,178.35,178.31,21.12007991]
[1748371059523,22.52166089,178.37,178.32,21.12007991]
[1748371060603,23.08229328,178.37,178.32,21.12007991]
[1748371061820,21.12007991,178.36,178.31,21.12007991]
[1748371065113,0.56069526,178.35,178.31,21.12007991]
[1748371066819,1.40158098,178.37,178.31,21.12007991]
[1748371067141,21.12007991,178.36,178.31,21.12007991]
[1748371067630,21.12007991,178.36,178.3,35.32]
[1748371067945,21.12007991,178.36,178.31,21.12007991]
[1748371068535,0.56069526,178.35,178.32,21.12007991]
[1748371070564,1.40158098,178.37,178.32,21.12007991]
[1748371070854,22.52166089,178.37,178.32,21.12007991]
[1748371071547,0.56069526,178.35,178.32,21.12007991]
[1748371072077,0.56069526,178.35,178.3,35.32]
[1748371072258,0.56069526,178.35,178.32,21.12007991]
[1748371072767,21.12007991,178.36,178.32,21.12007991]
[1748371073071,0.56060569,178.38,178.33,21.12007991]
[1748371073227,21.68066006,178.39,178.34,21.12007991]
[1748371074939,21.12007991,178.38,178.34,21.12007991]
[1748371076764,19.20999851,178.46,178.37,22.69757991]
[1748371077080,0.56034965,178.46,178.42,21.12007991]
[1748371077373,21.68039369,178.48,178.43,21.12007991]
[1748371077857,0.56031378,178.48,178.45,21.12007991]
[1748371078568,0.56025547,178.49,178.45,21.12007991]
[1748371079538,0.56025547,178.49,178.46,21.12007991]
[1748371080576,18.64964886,178.52,178.41,134.59750065]
[1748371080577,0.56022408,178.5,178.48,21.12007991]
[1748371081466,39.76972877,178.52,178.48,21.12007991]
[1748371081467,0.56016132,178.52,178.48,21.12007991]
[1748371082153,21.68024123,178.52,178.48,21.12007991]
[1748371082356,21.12007991,178.51,178.45,36.854]
[1748371082574,21.12007991,178.48,178.43,116.20777991]
[1748371082781,21.12007991,178.47,178.42,21.12007991]
[1748371083439,21.12007991,178.45,178.41,21.12007991]
[1748371084367,21.12007991,178.45,178.4,21.12007991]
[1748371084573,0.56041246,178.44,178.4,21.12007991]
[1748371085565,21.12007991,178.43,178.38,6.1869]
[1748371085748,21.12007991,178.43,178.38,27.30697991]
[1748371085949,21.12007991,178.42,178.38,27.30697991]
[1748371086254,21.12007991,178.43,178.38,27.30697991]
[1748371086645,0.56047528,178.42,178.38,27.30697991]
[1748371087876,0.56047528,178.42,178.38,6.1869]
[1748371088062,0.56047528,178.42,178.38,27.30697991]
[1748371088673,1.40103115,178.44,178.38,27.30697991]
[1748371088877,0.56038105,178.45,178.4,21.12007991]
[1748371089078,21.12007991,178.44,178.4,21.12007991]
[1748371089871,21.12007991,178.44,178.38,6.1869]
[1748371090057,21.12007991,178.44,178.39,21.12007991]
[1748371090386,21.12007991,178.43,178.38,27.30697991]
[1748371090760,0.56047528,178.42,178.38,27.30697991]
[1748371091190,0.56047528,178.42,178.39,21.12007991]
[1748371091588,0.56041246,178.44,178.41,21.12007991]
[1748371092386,0.56028686,178.48,178.43,21.12007991]
[1748371092565,0.56028686,178.48,178.44,21.12007991]
[1748371092960,0.56028686,178.48,178.47,21.12007991]
[1748371093190,30.58007991,178.52,178.47,21.12007991]
[1748371093489,21.68027261,178.51,178.47,21.12007991]
[1748371093654,21.68027261,178.51,178.46,21.12007991]
[1748371094578,23.08075437,178.51,178.46,21.12007991]
[1748371096001,23.08075437,178.51,178.44,26.0]
[1748371096206,23.08075437,178.51,178.46,21.12007991]
[1748371097900,1.96067446,178.51,178.47,21.12007991]
[1748371098705,23.08075437,178.51,178.46,21.12007991]
[1748371099324,1.40048176,178.51,178.46,21.12007991]
[1748371099512,22.52056167,178.51,178.46,21.12007991]
[1748371101723,23.08075437,178.51,178.46,21.12007991]
[1748371104001,23.08075437,178.51,178.44,115.0]
[1748371104202,23.08075437,178.51,178.46,21.12007991]
[1748371105134,1.96067446,178.51,178.46,21.12007991]
[1748371105311,23.08075437,178.51,178.46,21.12007991]
[1748371110510,23.08075437,178.51,178.47,21.12007991]
[1748371110511,1.40048176,178.51,178.47,21.12007991]
[1748371111627,22.52056167,178.51,178.46,21.12007991]
[1748371113111,1.96067446,178.51,178.46,21.12007991]
[1748371113516,1.96067446,178.51,178.48,21.12007991]
[1748371113517,0.5601927,178.51,178.48,21.12007991]
[1748371114339,0.5601927,178.51,178.47,21.12007991]
[1748371121121,0.5601927,178.51,178.47,110.12007991]
[1748371121642,1.96058475,178.52,178.48,21.12007991]
[1748371124517,23.08066466,178.52,178.47,110.12007991]
[1748371124928,1.96058475,178.52,178.47,110.12007991]
[1748371125130,23.08066466,178.52,178.47,110.12007991]
[1748371127027,23.08066466,178.52,178.48,21.12007991]
[1748371127356,1.96058475,178.52,178.48,21.12007991]
[1748371128364,1.96058475,178.52,178.5,21.12007991]
[1748371128572,0.56016132,178.52,178.5,21.12007991]
[1748371129079,0.56012995,178.53,178.49,21.12007991]
[1748371129975,0.56012995,178.53,178.5,21.12007991]
[1748371131570,0.56012995,178.53,178.47,89.0]
[1748371131770,0.56012995,178.53,178.5,21.12007991]
[1748371133653,20.60999387,178.54,178.5,21.12007991]
[1748371135350,41.73007378,178.54,178.49,21.12007991]
[1748371135761,18.64964886,178.52,178.48,56.34007991]
[1748371136565,1.96034501,178.54,178.48,56.34007991]
[1748371136771,0.5601927,178.51,178.48,56.34007991]
[1748371137268,0.5601927,178.51,178.48,35.22]
[1748371137649,0.5601927,178.51,178.47,21.12007991]
[1748371137856,18.64964886,178.5,178.46,6.4515]
[1748371138155,21.12007991,178.49,178.44,124.22]
[1748371138372,39.76972877,178.48,178.41,15.9947]
[1748371138661,39.76972877,178.48,178.42,56.34007991]
[1748371139371,18.64964886,178.48,178.44,21.12007991]
[1748371139863,18.64964886,178.49,178.46,21.12007991]
[1748371140167,0.56028686,178.48,178.46,21.12007991]
[1748371141146,0.56022408,178.5,178.47,21.12007991]
[1748371141338,0.56022408,178.5,178.48,21.12007991]
[1748371142065,0.5601927,178.51,178.48,21.12007991]
[1748371142266,23.08075437,178.51,178.46,56.34007991]
[1748371142452,23.08075437,178.51,178.46,35.22]
[1748371142871,23.08075437,178.51,178.46,56.34007991]
[1748371143866,18.64964886,178.5,178.44,9.44]
[1748371144040,21.12007991,178.49,178.44,65.78007991]
[1748371144751,0.56028686,178.48,178.44,65.78007991]
[1748371145446,0.56028686,178.48,178.44,30.56007991]
[1748371145646,1.96100402,178.48,178.44,65.78007991]
[1748371146553,1.96100402,178.48,178.45,21.12007991]
[1748371148554,1.40071716,178.48,178.45,21.12007991]
[1748371149356,1.40071716,178.48,178.44,9.44]
[1748371149357,22.52079707,178.48,178.44,9.44]
[1748371149552,21.12007991,178.47,178.43,35.2]
[1748371150166,21.12007991,178.47,178.42,21.12007991]
[1748371150369,0.56034965,178.46,178.42,56.32007991]
[1748371151051,0.56034965,178.46,178.44,21.12007991]
[1748371151879,39.76972877,178.45,178.4,1.5845]
[1748371152057,18.64964886,178.43,178.4,36.7845]
[1748371152250,0.56046427,178.43,178.41,21.12007991]
[1748371152453,0.56046427,178.43,178.42,21.12007991]
[1748371154358,0.56041246,178.44,178.42,21.12007991]
[1748371155574,18.64964886,178.47,178.43,21.12007991]
[1748371155776,18.64964886,178.47,178.44,21.12007991]
[1748371156154,18.64964886,178.47,178.44,56.32007991]
[1748371156778,0.56034965,178.46,178.44,56.32007991]
[1748371157183,0.56034965,178.46,178.44,35.2]
[1748371158583,0.56034965,178.46,178.45,21.12007991]
[1748371158962,0.56034965,178.46,178.44,56.32007991]
[1748371159575,0.56034965,178.46,178.44,35.2]
[1748371162360,0.56034965,178.46,178.44,56.32007991]
[1748371162558,0.56034965,178.46,178.45,21.12007991]
[1748371162956,18.64964886,178.45,178.4,90.5845]
[1748371163179,18.64964886,178.45,178.38,152.8591]
[1748371163180,18.64964886,178.43,178.38,95.1591]
[1748371163489,18.64964886,178.43,178.38,62.47917991]
[1748371163490,18.64964886,178.42,178.38,62.47917991]
[1748371163680,18.64964886,178.41,178.38,6.1591]
[1748371163977,18.64964886,178.41,178.37,65.76007991]
[1748371164462,0.56053811,178.4,178.37,30.56007991]
[1748371164667,0.56053811,178.4,178.37,65.76007991]
[1748371165190,0.56053811,178.4,178.37,9.44]
[1748371168960,0.56053811,178.4,178.37,30.56007991]
[1748371172822,0.56053811,178.4,178.37,65.76007991]
[1748371183236,26.0,178.38,178.37,44.64]
[1748371183440,26.0,178.38,178.34,95.1591]
[1748371183441,44.64964886,178.38,178.34,95.1591]
[1748371183606,18.64964886,178.37,178.34,89.0]
[1748371183811,26.0,178.35,178.34,89.0]
[1748371184324,44.64964886,178.35,178.34,89.0]
[1748371185340,45.21034412,178.35,178.34,89.0]
[1748371185843,45.21034412,178.35,178.32,30.54007991]
[1748371186013,45.21034412,178.35,178.32,65.72007991]
[1748371186430,26.0,178.35,178.33,21.12007991]
[1748371186635,18.64964886,178.38,178.34,21.12007991]
[1748371186845,44.64964886,178.38,178.36,21.12007991]
[1748371187138,26.0,178.38,178.37,21.12007991]
[1748371187718,26.56060096,178.38,178.36,21.12007991]
[1748371187931,26.0,178.36,178.35,56.30007991]
[1748371189408,26.0,178.37,178.35,56.30007991]
[1748371189617,26.0,178.37,178.35,35.18]
[1748371191225,0.56065569,178.37,178.35,35.18]
[1748371192745,0.56060096,178.38,178.35,35.18]
[1748371192943,39.76972877,178.37,178.32,119.54007991]
[1748371193145,39.76972877,178.37,178.32,30.54007991]
[1748371193444,18.64964886,178.37,178.33,56.30007991]
[1748371194429,0.56066382,178.36,178.32,30.54007991]
[1748371194630,0.56066382,178.36,178.33,35.16]
[1748371195117,39.76972877,178.35,178.32,9.42]
[1748371195318,21.12007991,178.34,178.3,6.5042]
[1748371195523,21.12007991,178.32,178.27,11.0265]
[1748371195738,21.12007991,178.32,178.29,35.16]
[1748371196123,21.12007991,178.32,178.27,121.14657991]
[1748371196325,21.12007991,178.32,178.28,35.16]
[1748371196839,0.56082104,178.31,178.27,67.30657991]
[1748371197216,0.56082104,178.31,178.27,22.72657991]
[1748371197946,0.56082104,178.31,178.27,57.88657991]
[1748371198131,0.56082104,178.31,178.27,36.7665]
[1748371198342,0.56082104,178.31,178.27,57.88657991]
[1748371198738,0.56082104,178.31,178.27,56.28007991]
[1748371199947,0.56088395,178.29,178.26,21.12007991]
[1748371200147,21.68096386,178.29,178.26,35.16]
[1748371200350,21.68096386,178.29,178.25,124.16]
[1748371200351,21.12007991,178.28,178.25,124.16]
[1748371200538,21.12007991,178.27,178.23,46.1022]
[1748371200971,39.76972877,178.28,178.23,67.22227991]
[1748371201144,39.76972877,178.28,178.23,32.06227991]
[1748371201344,39.76972877,178.28,178.23,67.22227991]
[1748371202456,0.56094687,178.27,178.23,67.22227991]
[1748371202671,0.56094687,178.27,178.24,21.12007991]
[1748371202870,0.56082104,178.31,178.26,21.12007991]
[1748371203076,0.56082104,178.31,178.27,56.28007991]
[1748371203444,21.68090095,178.31,178.27,56.28007991]
[1748371204767,0.56082104,178.31,178.28,21.12007991]
[1748371205446,0.56079903,178.32,178.3,21.12007991]
[1748371206281,19.21037556,178.34,178.3,21.12007991]
[1748371206650,19.21037556,178.34,178.27,41.481]
[1748371206651,18.64964886,178.32,178.27,41.481]
[1748371206866,18.64964886,178.32,178.29,21.12007991]
[1748371207875,0.56082104,178.31,178.29,21.12007991]
[1748371208467,0.56082104,178.31,178.28,21.12007991]
[1748371208779,0.56082104,178.31,178.27,62.60107991]
[1748371208967,0.56082104,178.31,178.28,21.12007991]
[1748371210057,21.12007991,178.29,178.23,106.2707]
[1748371210261,18.64964886,178.28,178.24,56.28007991]
[1748371211165,0.56094687,178.27,178.24,21.12007991]
[1748371211365,0.56094687,178.27,178.23,36.86857991]
[1748371211669,0.56094687,178.27,178.23,65.70007991]
[1748371211875,39.76972877,178.24,178.15,6.4656]
[1748371212055,18.64964886,178.21,178.15,6.4656]
[1748371212248,26.0,178.2,178.1,41.6256]
[1748371212451,21.12007991,178.18,178.1,41.6256]
[1748371212688,39.76972877,178.17,178.1,6.4656]
[1748371212851,18.64964886,178.15,178.11,21.12007991]
[1748371213051,18.64964886,178.15,178.03,5.61675053]
[1748371213249,21.12007991,178.11,178.06,21.12007991]
[1748371213451,18.64964886,178.13,178.09,21.12007991]
[1748371213665,0.56135623,178.14,178.01,8.53869668]
[1748371213955,18.64964886,178.11,178.07,21.12007991]
[1748371214169,39.76972877,178.13,178.07,21.12007991]
[1748371214575,0.56135623,178.14,178.06,35.16]
[1748371214774,1.96474682,178.14,178.1,21.12007991]
[1748371215216,0.56135623,178.14,178.08,26.0]
[1748371215389,0.56135623,178.14,178.12,21.12007991]
[1748371215891,18.64964886,178.16,178.12,21.12007991]
[1748371216306,18.64964886,178.16,178.1,61.16]
[1748371216495,39.76972877,178.16,178.11,21.12007991]
[1748371217610,18.64964886,178.18,178.12,21.12007991]
[1748371217808,18.64964886,178.16,178.12,21.12007991]
[1748371219495,21.12007991,178.13,178.07,37.76932134]
[1748371219694,18.64964886,178.12,178.07,6.1536]
[1748371219894,18.64964886,178.12,178.08,21.12007991]
[1748371220286,39.76972877,178.12,178.07,27.27367991]
[1748371220488,18.64964886,178.16,178.1,21.12007991]
[1748371220687,18.64964886,178.14,178.1,21.12007991]
[1748371221226,0.56132472,178.15,178.1,21.12007991]
[1748371221524,18.64964886,178.14,178.11,21.12007991]
[1748371221697,18.64964886,178.15,178.12,21.12007991]
[1748371222294,0.5612964,178.16,178.12,21.12007991]
[1748371222502,18.64964886,178.17,178.15,21.12007991]
[1748371222712,18.64964886,178.17,178.1,35.24]
[1748371222928,18.64964886,178.17,178.14,21.12007991]
[1748371223085,0.56129321,178.16,178.1,35.24]
[1748371223414,0.56129321,178.16,178.13,21.12007991]
[1748371224293,0.5612688,178.17,178.14,21.12007991]
[1748371224712,18.64964886,178.16,178.13,21.12007991]
[1748371225795,18.64964886,178.16,178.14,21.12007991]
[1748371225995,18.64964886,178.16,178.15,21.12007991]
[1748371226300,0.56129321,178.16,178.15,21.12007991]
[1748371228021,0.56123021,178.18,178.15,21.12007991]
[1748371228411,1.96430575,178.18,178.1,89.0]
[1748371228597,1.96430575,178.18,178.07,32.1536]
[1748371228598,18.64964886,178.15,178.07,130.8936]
[1748371228798,18.64964886,178.11,178.07,95.1536]
[1748371229018,18.64964886,178.11,178.08,21.12007991]
[1748371229392,18.64964886,178.11,178.09,21.12007991]
[1748371229612,18.64964886,178.11,178.08,21.12007991]
[1748371230400,0.56148231,178.1,178.08,21.12007991]
[1748371230600,0.56148231,178.1,178.07,6.1536]
[1748371230820,0.56148231,178.1,178.09,21.12007991]
[1748371230996,0.56148231,178.1,178.07,6.1536]
[1748371231194,18.64964886,178.09,178.02,6.4979]
[1748371231730,39.76972877,178.09,178.04,21.12007991]
[1748371232030,18.64964886,178.09,178.02,6.4979]
[1748371232317,18.64964886,178.09,178.06,21.12007991]
[1748371232520,0.56154537,178.08,178.05,21.12007991]
[1748371233117,0.56151484,178.09,178.05,21.12007991]
[1748371233317,0.56151484,178.09,178.06,21.12007991]
[1748371234000,0.56151484,178.09,178.02,6.4979]
[1748371234205,21.12007991,178.06,177.98,42.8762]
[1748371234545,40.33136875,178.05,178.0,21.12007991]
[1748371234702,40.33136875,178.05,177.98,42.8762]
[1748371234903,19.21128884,178.05,177.98,42.8762]
[1748371235207,19.21128884,178.05,178.02,21.12007991]
[1748371235708,19.21128884,178.05,177.98,42.8762]
[1748371235907,0.56161033,178.06,177.98,42.8762]
[1748371236115,18.64964886,178.05,177.98,42.8762]
[1748371236320,18.64964886,178.05,177.98,6.4162]
[1748371236528,18.64964886,178.03,178.0,21.12007991]
[1748371236720,0.56160844,178.06,177.98,6.4162]
[1748371237035,0.56160844,178.06,178.02,21.12007991]
[1748371237200,0.56160844,178.06,178.03,21.12007991]
[1748371237412,18.64964886,178.08,178.04,21.12007991]
[1748371238438,0.5615769,178.07,177.98,49.09478177]
[1748371238652,21.68165681,178.07,178.02,21.12007991]
[1748371238952,19.21122576,178.07,178.03,21.12007991]
[1748371239320,39.76972877,178.06,177.98,6.4162]
[1748371239743,21.12007991,178.04,177.98,6.4162]
[1748371240121,18.64964886,178.03,177.98,6.4162]
[1748371240325,39.76972877,178.03,177.98,27.53627991]
[1748371240636,0.56173463,178.02,177.98,6.4162]
[1748371240947,0.56173463,178.02,177.99,21.12007991]
[1748371241446,0.56173463,178.02,178.01,21.12007991]
[1748371241840,0.56167153,178.04,178.01,21.12007991]
[1748371242429,1.96573995,178.05,178.01,21.12007991]
[1748371242652,39.76972877,178.04,177.97,1.6082]
[1748371242847,18.64964886,178.04,178.0,21.12007991]
[1748371243051,1.96573995,178.05,178.02,21.12007991]
[1748371243838,0.56163998,178.05,178.02,21.12007991]
[1748371244241,0.56163998,178.05,178.01,21.12007991]
[1748371244448,0.56170308,178.03,178.0,21.12007991]
[1748371245460,0.56170308,178.03,178.01,21.12007991]
[1748371245659,0.56170308,178.03,178.0,21.12007991]
[1748371246465,41.17382874,178.05,178.0,21.12007991]
[1748371246466,0.56167153,178.04,178.0,21.12007991]
[1748371246666,21.68175144,178.04,178.0,21.12007991]
[1748371246896,21.68175144,178.04,177.97,38.7482]
[1748371247192,0.56167153,178.04,178.01,21.12007991]
[1748371247568,0.56167153,178.04,178.0,21.12007991]
[1748371247979,0.56160844,178.06,178.02,21.12007991]
[1748371248187,0.56160844,178.06,178.04,21.12007991]
[1748371248361,0.56160844,178.06,178.05,21.12007991]
[1748371249190,0.56151384,178.09,178.05,21.12007991]
[1748371249388,0.56151384,178.09,178.02,64.62597991]
[1748371249600,0.56151384,178.09,178.06,21.12007991]
[1748371250315,0.56151384,178.09,178.07,21.12007991]
[1748371250819,0.56151384,178.09,178.08,21.12007991]
[1748371251111,0.56141926,178.12,178.08,21.12007991]
[1748371251308,0.56141926,178.12,178.09,21.12007991]
[1748371251878,1.96496742,178.12,178.03,10.32]
[1748371252100,18.64964886,178.11,178.03,10.32]
[1748371252303,18.64964886,178.09,178.06,21.12007991]
[1748371252911,1.96518809,178.1,178.07,21.12007991]
[1748371253919,21.12007991,178.08,178.02,6.4459]
[1748371254093,18.64964886,178.09,178.02,27.56597991]
[1748371254417,1.9654088,178.08,178.06,21.12007991]
[1748371254593,1.9654088,178.08,178.05,21.12007991]
[1748371254793,0.56154537,178.08,178.07,21.12007991]
[1748371256012,0.56148231,178.1,178.07,21.12007991]
[1748371256389,1.96518809,178.1,178.05,37.28]
[1748371256604,1.96518809,178.1,178.06,21.12007991]
[1748371256921,21.12007991,178.09,178.05,58.40007991]
[1748371257089,21.12007991,178.09,178.05,37.28]
[1748371257287,18.64964886,178.09,178.05,21.12007991]
[1748371257915,39.76972877,178.09,178.05,21.12007991]
[1748371258102,0.56154537,178.08,178.05,21.12007991]
[1748371258814,0.56154537,178.08,178.06,21.12007991]
[1748371261788,0.56148231,178.1,178.03,42.83695645]
[1748371261993,1.96518809,178.1,178.06,21.12007991]
[1748371262604,23.085268,178.1,178.03,37.22]
[1748371262893,18.64964886,178.07,178.03,21.12007991]
[1748371263306,39.76972877,178.09,178.04,21.12007991]
[1748371264616,18.64964886,178.07,178.04,21.12007991]
[1748371265226,39.76972877,178.07,177.98,99.32]
[1748371265397,39.76972877,178.07,178.02,21.12007991]
[1748371266331,18.64964886,178.01,177.92,7.8957]
[1748371266496,21.12007991,177.95,177.81,6.2971]
[1748371266699,18.64964886,177.92,177.87,21.12007991]
[1748371266904,18.64964886,177.92,177.88,21.12007991]
[1748371267150,44.64964886,177.94,177.89,21.12007991]
[1748371267293,44.64964886,177.94,177.9,21.12007991]
[1748371267497,44.64964886,177.94,177.91,21.12007991]
[1748371267498,18.64964886,177.94,177.91,21.12007991]
[1748371267707,26.0,177.96,177.91,21.12007991]
[1748371267921,0.56189245,177.97,177.92,21.12007991]
[1748371268098,0.56189245,177.97,177.94,21.12007991]
[1748371268297,0.56189245,177.97,177.94,20.62007991]
[1748371268506,0.56189245,177.97,177.95,21.12007991]
[1748371269332,6.3171,178.03,177.9,6.6022]
[1748371269333,1.96551916,178.07,177.96,21.12007991]
[1748371269532,21.12007991,178.04,177.99,21.12007991]
[1748371269735,1.96551916,178.07,177.99,21.12007991]
[1748371270027,1.96551916,178.07,177.93,58.24007991]
[1748371270028,21.12007991,178.02,177.97,21.12007991]
[1748371270227,18.64964886,178.01,177.97,21.12007991]
[1748371270800,0.56179775,178.0,177.97,21.12007991]
[1748371271224,0.56179775,178.0,177.93,37.12]
[1748371271420,0.56179775,178.0,177.97,21.12007991]
[1748371271843,0.56179775,178.0,177.98,21.12007991]
[1748371272241,0.56173463,178.02,177.99,21.12007991]
[1748371272650,0.56173463,178.02,177.98,21.12007991]
[1748371273019,21.68175144,178.04,177.99,21.12007991]
[1748371273457,21.68175144,178.04,177.98,21.12007991]
[1748371273458,47.12007991,178.03,177.98,21.12007991]
[1748371273624,47.12007991,178.03,177.93,42.74012147]
[1748371273826,47.12007991,178.03,177.98,21.12007991]
[1748371274067,47.12007991,178.03,177.93,63.86020138]
[1748371274243,47.12007991,178.03,177.98,21.12007991]
[1748371274930,0.56173463,178.02,177.99,21.12007991]
[1748371275434,0.56173463,178.02,177.98,21.12007991]
[1748371275638,26.0,178.0,177.98,21.12007991]
[1748371275847,26.0,178.02,177.99,21.12007991]
[1748371276052,26.0,178.02,178.01,21.12007991]
[1748371276853,26.56173463,178.02,178.01,21.12007991]
[1748371277064,0.56173463,178.02,178.01,21.12007991]
[1748371277223,0.56173463,178.02,177.95,36.98]
[1748371277429,0.56173463,178.02,178.0,21.12007991]
[1748371277858,0.56173463,178.02,178.01,21.12007991]
[1748371278968,0.56170308,178.03,178.0,21.12007991]
[1748371279549,0.56167999,178.04,178.02,21.12007991]